lending/lending_fUSD_20251107
["ID","MTS","AMOUNT","RATE_DAILY","PERIOD"]
[393357136,1762519656509,500.0,0.00038819,120]
[393357137,1762519656744,500.0,0.00038819,120]
[393357138,1762519656998,500.0,0.00038819,120]
[393357139,1762519657284,500.0,0.00038819,120]
[393357140,1762519657548,500.0,0.00038819,120]
[393357141,1762519657814,500.0,0.00038819,120]
[393357142,1762519658089,500.0,0.00038819,120]
[393357143,1762519658333,498.55,0.00038819,120]
[393357144,1762519661138,500.0,0.00038819,120]
[393357145,1762519661404,500.0,0.00038819,120]
[393357146,1762519661668,500.0,0.00038819,120]
[393357147,1762519661973,500.0,0.00038819,120]
[393357148,1762519662218,500.0,0.00038819,120]
[393357149,1762519662752,500.0,0.00038819,120]
[393357150,1762519663082,500.0,0.00038819,120]
[393357151,1762519663331,500.0,0.00038819,120]
[393357152,1762519663621,500.0,0.00038819,120]
[393357153,1762519664103,500.0,0.00038819,120]
[393357154,1762519664172,562.97,0.00038819,120]
[393357155,1762519669547,500.0,0.00038819,120]
[393357156,1762519669783,500.0,0.00038819,120]
[393357157,1762519670048,500.0,0.00038819,120]
[393357158,1762519670290,500.0,0.00038819,120]
[393357159,1762519670553,500.0,0.00038819,120]
[393357160,1762519670802,500.0,0.00038819,120]
[393357161,1762519671037,500.0,0.00038819,120]
[393357162,1762519671314,500.0,0.00038819,120]
[393357163,1762519671630,500.0,0.00038819,120]
[393357164,1762519671902,539.75,0.00038819,120]
[393357165,1762519679459,697.92,0.00038819,120]
[393357166,1762519679716,697.92,0.00038819,120]
[393357167,1762519679974,697.92,0.00038819,120]
[393357168,1762519680257,697.92,0.00038819,120]
[393357169,1762519680533,697.92,0.00038819,120]
[393357170,1762519680800,697.92,0.00038819,120]
[393357171,1762519681044,697.92,0.00038819,120]
[393357172,1762519681289,697.92,0.00038819,120]
[393357173,1762519681531,697.92,0.00038819,120]
[393357174,1762519681767,697.92,0.00038819,120]
[393357175,1762519682016,697.92,0.00038819,120]
[393357176,1762519682249,697.92,0.00038819,120]
[393357177,1762519682481,697.92,0.00038819,120]
[393357178,1762519682735,697.92,0.00038819,120]
[393357179,1762519683017,697.92,0.00038819,120]
[393357180,1762519683309,697.92,0.00038819,120]
[393357181,1762519683588,697.92,0.00038819,120]
[393357182,1762519683863,697.92,0.00038819,120]
[393357183,1762519684118,697.92,0.00038819,120]
[393357184,1762519684365,697.92,0.00038819,120]
[393357185,1762519684625,697.92,0.00038819,120]
[393357186,1762519685083,697.92,0.00038819,120]
[393357187,1762519685187,697.92,0.00038819,120]
[393357188,1762519685442,697.92,0.00038819,120]
[393357189,1762519686411,500.0,0.00038819,120]
[393357190,1762519686692,500.0,0.00038819,120]
[393357191,1762519687003,500.0,0.00038819,120]
[393357192,1762519687249,500.0,0.00038819,120]
[393357193,1762519687530,500.0,0.00038819,120]
[393357194,1762519687773,500.0,0.00038819,120]
[393357195,1762519688028,500.0,0.00038819,120]
[393357196,1762519688352,500.0,0.00038819,120]
[393357197,1762519688612,500.0,0.00038819,120]
[393357198,1762519688879,500.0,0.00038819,120]
[393357199,1762519689131,500.0,0.00038819,120]
[393357200,1762519689379,500.0,0.00038819,120]
[393357201,1762519689621,500.0,0.00038819,120]
[393357202,1762519689864,500.0,0.00038819,120]
[393357203,1762519690102,500.0,0.00038819,120]
[393357204,1762519690351,212.17,0.00038819,120]
[393357205,1762519716923,500.0,0.00038819,120]
[393357206,1762519717337,500.0,0.00038819,120]
[393357207,1762519717417,500.0,0.00038819,120]
[393357208,1762519717660,500.0,0.00038819,120]
[393357209,1762519717895,500.0,0.00038819,120]
[393357210,1762519718137,500.0,0.00038819,120]
[393357211,1762519718396,500.0,0.00038819,120]
[393357212,1762519718672,500.0,0.00038819,120]
[393357213,1762519718927,500.0,0.00038819,120]
[393357214,1762519719164,500.0,0.00038819,120]
[393357215,1762519719409,500.0,0.00038819,120]
[393357216,1762519719658,500.0,0.00038819,120]
[393357217,1762519719892,500.0,0.00038819,120]
[393357218,1762519720127,500.0,0.00038819,120]
[393357219,1762519720362,500.0,0.00038819,120]
[393357220,1762519720597,500.0,0.00038819,120]
[393357221,1762519720858,500.0,0.00038819,120]
[393357222,1762519721085,500.0,0.00038819,120]
[393357223,1762519721330,543.14,0.00038819,120]
[393357224,1762519728448,500.0,0.00038819,120]
[393357225,1762519728727,500.0,0.00038819,120]
[393357226,1762519728968,500.0,0.00038819,120]
[393357227,1762519729212,500.0,0.00038819,120]
[393357228,1762519729436,500.0,0.00038819,120]
[393357229,1762519729732,500.0,0.00038819,120]
[393357230,1762519729977,500.0,0.00038819,120]
[393357231,1762519730232,500.0,0.00038819,120]
[393357232,1762519730494,500.0,0.00038819,120]
[393357233,1762519730779,500.0,0.00038819,120]
[393357234,1762519731050,500.0,0.00038819,120]
[393357235,1762519731457,576.92,0.00038819,120]
[393357236,1762519735149,1518.99,0.00038819,120]
[393357237,1762519735427,1518.99,0.00038819,120]
[393357238,1762519735698,1518.99,0.00038819,120]
[393357239,1762519735939,1518.99,0.00038819,120]
[393357240,1762519736194,1518.99,0.00038819,120]
[393357241,1762519736484,1518.99,0.00038819,120]
[393357242,1762519736719,1518.99,0.00038819,120]
[393357243,1762519736991,1518.99,0.00038819,120]
[393357244,1762519737504,1518.99,0.00038819,120]
[393357245,1762519737767,1518.99,0.00038819,120]
[393357246,1762519737861,1518.99,0.00038819,120]
[393357247,1762519738096,1518.99,0.00038819,120]
[393357248,1762519738377,1518.99,0.00038819,120]
[393357249,1762519738605,1518.99,0.00038819,120]
[393357250,1762519738834,1518.99,0.00038819,120]
[393357251,1762519739063,1518.99,0.00038819,120]
[393357252,1762519739298,1518.99,0.00038819,120]
[393357253,1762519739532,1518.99,0.00038819,120]
[393357254,1762519739804,1518.99,0.00038819,120]
[393357255,1762519740040,1518.99,0.00038819,120]
[393357256,1762519740316,1518.99,0.00038819,120]
[393357257,1762519740510,1518.99,0.00038819,120]
[393357258,1762519740788,1518.99,0.00038819,120]
[393357259,1762519741083,1519.02,0.00038819,120]
[393357260,1762519741248,500.0,0.00038819,120]
[393357261,1762519741486,500.0,0.00038819,120]
[393357262,1762519741751,500.0,0.00038819,120]
[393357263,1762519742034,500.0,0.00038819,120]
[393357264,1762519742298,500.0,0.00038819,120]
[393357265,1762519742391,500.0,0.00038819,120]
[393357266,1762519742554,500.0,0.00038819,120]
[393357267,1762519742628,500.0,0.00038819,120]
[393357268,1762519742809,500.0,0.00038819,120]
[393357269,1762519742857,500.0,0.00038819,120]
[393357270,1762519743048,500.0,0.00038819,120]
[393357271,1762519743143,500.0,0.00038819,120]
[393357272,1762519743283,623.19,0.00038819,120]
[393357273,1762519743426,500.0,0.00038819,120]
[393357274,1762519743699,500.0,0.00038819,120]
[393357275,1762519743982,500.0,0.00038819,120]
[393357276,1762519744225,500.0,0.00038819,120]
[393357277,1762519744485,500.0,0.00038819,120]
[393357278,1762519744732,500.0,0.00038819,120]
[393357279,1762519744981,500.0,0.00038819,120]
[393357280,1762519745591,500.0,0.00038819,120]
[393357281,1762519745845,500.0,0.00038819,120]
[393357282,1762519746094,500.0,0.00038819,120]
[393357283,1762519746324,500.0,0.00038819,120]
[393357284,1762519746601,500.0,0.00038819,120]
[393357285,1762519746862,500.0,0.00038819,120]
[393357286,1762519747109,500.0,0.00038819,120]
[393357287,1762519747349,500.0,0.00038819,120]
[393357288,1762519747623,500.0,0.00038819,120]
[393357289,1762519748017,326.61,0.00038819,120]
[393357290,1762519756384,500.0,0.00038819,120]
[393357291,1762519756653,500.0,0.00038819,120]
[393357292,1762519756929,500.0,0.00038819,120]
[393357293,1762519757165,500.0,0.00038819,120]
[393357294,1762519757414,500.0,0.00038819,120]
[393357295,1762519757646,500.0,0.00038819,120]
[393357296,1762519757907,500.0,0.00038819,120]
[393357297,1762519758234,500.0,0.00038819,120]
[393357298,1762519758543,500.0,0.00038819,120]
[393357299,1762519758817,441.36319879,0.00038819,120]
[393357300,1762519764585,150.49142004,0.00038819,120]
[393357301,1762519806831,136.93631327,0.00018,30]
[393357302,1762519806884,68.06368673,0.00018,30]
[393357303,1762519808288,157.0,0.00018,30]
[393357304,1762519808514,157.0,0.00018,30]
[393357305,1762519808768,157.0,0.00018,30]
[393357306,1762519808990,157.0,0.00018,30]
[393357308,1762519827321,308.59691111,0.0003013,120]
[393357309,1762519830020,380.0,0.0003013,120]
[393357310,1762519830949,206.0,0.0003013,120]
[393357311,1762519831735,200.0,0.0003013,120]
[393357324,1762519832256,-194.78,0.00016712,2]
[393357325,1762519832266,-195.0,0.00016724,2]
[393357326,1762519832277,-108.2175,0.00016736,2]
[393357327,1762519832289,-41.7825,0.00016736,2]
[393357328,1762519832298,-1852.42,0.00016744,2]
[393357329,1762519832308,-500.0,0.00016761,2]
[393357331,1762519832317,-250.0,0.00016768,2]
[393357332,1762519832326,-1390.02,0.00016776,2]
[393357333,1762519832335,-200.0,0.00016868,2]
[393357334,1762519832344,-213.66,0.00016904,2]
[393357335,1762519832354,-250.0,0.00017,2]
[393357336,1762519832363,-151.0,0.00017364,2]
[393357337,1762519832372,-156.587,0.00017364,2]
[393357338,1762519832382,-157.72711831,0.00017364,2]
[393357339,1762519832391,-1200.0,0.00017597,2]
[393357340,1762519832401,-382.0,0.00017598,2]
[393357341,1762519832410,-300.0,0.00017598,2]
[393357342,1762519832420,-300.0,0.00017599,2]
[393357343,1762519832429,-550.0,0.00017599,2]
[393357344,1762519832438,-300.0,0.00017599,2]
[393357345,1762519832447,-557.43795097,0.000176,2]
[393357346,1762519832457,-711.1423,0.000176,2]
[393357347,1762519832471,-2441.587,0.000176,2]
[393357348,1762519832481,-1000.0,0.000176,2]
[393357349,1762519832490,-798.7499,0.000176,2]
[393357350,1762519832499,-9998.33870295,0.000176,2]
[393357351,1762519832508,-8191.59592683,0.000176,2]
[393357352,1762519832517,-9998.33870293,0.00017633,2]
[393357353,1762519832527,-8191.59592678,0.00017633,2]
[393357354,1762519832537,-893.85465609,0.00017636,2]
[393357355,1762519832546,-213.87973632,0.00017666,2]
[393357356,1762519832555,-9998.33870293,0.00017667,2]
[393357357,1762519832564,-500.0,0.00017673,2]
[393357358,1762519832573,-170.18333266,0.00017673,2]
[393357359,1762519832584,-476.03838915,0.00017673,2]
[393357360,1762519832595,-500.0,0.00017673,2]
[393357361,1762519832610,-620.64256179,0.00017673,2]
[393357363,1762519832624,-500.0,0.00017673,2]
[393357364,1762519832634,-500.0,0.00017673,2]
[393357365,1762519832643,-500.0,0.00017673,2]
[393357366,1762519832653,-500.0,0.00017673,2]
[393357367,1762519832662,-500.0,0.00017673,2]
[393357368,1762519832672,-500.0,0.00017673,2]
[393357369,1762519832684,-500.0,0.00017673,2]
[393357370,1762519832695,-500.0,0.00017673,2]
[393357371,1762519832704,-500.0,0.00017673,2]
[393357372,1762519832713,-500.0,0.00017673,2]
[393357373,1762519832724,-500.0,0.00017673,2]
[393357374,1762519832733,-552.1894013,0.00017673,2]
[393357375,1762519832742,-500.0,0.00017673,2]
[393357376,1762519832751,-500.0,0.00017673,2]
[393357377,1762519832762,-500.0,0.00017673,2]
[393357378,1762519832773,-500.0,0.00017689,2]
[393357379,1762519832782,-150.0,0.00017689,2]
[393357380,1762519832791,-500.0,0.00017689,2]
[393357381,1762519832800,-500.0,0.00017689,2]
[393357382,1762519832810,-500.0,0.00017689,2]
[393357383,1762519832820,-500.0,0.00017689,2]
[393357384,1762519832829,-500.0,0.00017689,2]
[393357385,1762519832842,-500.0,0.00017689,2]
[393357386,1762519832851,-500.0,0.00017689,2]
[393357387,1762519832861,-500.0,0.00017689,2]
[393357388,1762519832870,-500.0,0.00017689,2]
[393357389,1762519832880,-500.0,0.00017689,2]
[393357390,1762519832889,-168.34614064,0.00017689,2]
[393357391,1762519832899,-500.0,0.00017689,2]
[393357392,1762519832908,-500.0,0.00017689,2]
[393357393,1762519832917,-150.0,0.00017689,2]
[393357394,1762519832926,-500.0,0.00017689,2]
[393357395,1762519832936,-150.0,0.00017689,2]
[393357396,1762519832947,-150.0,0.00017689,2]
[393357397,1762519832956,-500.0,0.00017689,2]
[393357398,1762519832966,-150.0,0.00017689,2]
[393357399,1762519832975,-150.0,0.00017689,2]
[393357400,1762519832984,-150.0,0.00017689,2]
[393357401,1762519832994,-500.0,0.00017689,2]
[393357402,1762519833003,-150.0,0.00017689,2]
[393357403,1762519833013,-150.0,0.00017689,2]
[393357404,1762519833024,-500.0,0.00017689,2]
[393357405,1762519833033,-674.0,0.00017689,2]
[393357406,1762519833047,-150.0,0.00017689,2]
[393357407,1762519833056,-500.0,0.00017689,2]
[393357408,1762519833065,-151.0,0.00017689,2]
[393357409,1762519833075,-151.0,0.00017689,2]
[393357410,1762519833085,-151.0,0.00017689,2]
[393357411,1762519833094,-151.0,0.00017689,2]
[393357412,1762519833104,-151.0,0.00017689,2]
[393357413,1762519833113,-151.0,0.00017689,2]
[393357414,1762519833123,-151.0,0.00017689,2]
[393357415,1762519833132,-151.0,0.00017689,2]
[393357416,1762519833142,-151.0,0.00017689,2]
[393357417,1762519833151,-151.0,0.00017689,2]
[393357418,1762519833161,-151.0,0.00017689,2]
[393357419,1762519833171,-151.0,0.00017689,2]
[393357420,1762519833181,-151.0,0.00017689,2]
[393357421,1762519833191,-151.0,0.00017689,2]
[393357422,1762519833202,-151.0,0.00017689,2]
[393357423,1762519833212,-151.0,0.00017689,2]
[393357424,1762519833222,-151.0,0.00017689,2]
[393357425,1762519833231,-151.0,0.00017689,2]
[393357426,1762519833245,-151.0,0.00017689,2]
[393357427,1762519833255,-151.0,0.00017689,2]
[393357428,1762519833265,-151.0,0.00017689,2]
[393357429,1762519833276,-151.0,0.00017689,2]
[393357430,1762519833285,-151.0,0.00017689,2]
[393357431,1762519833295,-151.0,0.00017689,2]
[393357432,1762519833304,-151.0,0.00017689,2]
[393357433,1762519833313,-151.0,0.00017689,2]
[393357434,1762519833323,-151.0,0.00017689,2]
[393357435,1762519833332,-151.0,0.00017689,2]
[393357436,1762519833341,-151.0,0.00017689,2]
[393357437,1762519833352,-151.0,0.00017689,2]
[393357438,1762519833361,-151.0,0.00017689,2]
[393357439,1762519833371,-151.0,0.00017689,2]
[393357440,1762519833380,-151.0,0.00017689,2]
[393357441,1762519833389,-151.0,0.00017689,2]
[393357442,1762519833399,-151.0,0.00017689,2]
[393357443,1762519833408,-151.0,0.00017689,2]
[393357444,1762519833418,-151.0,0.00017689,2]
[393357445,1762519833427,-151.0,0.00017689,2]
[393357446,1762519833437,-151.0,0.00017689,2]
[393357447,1762519833449,-260.92709679,0.00017689,2]
[393357448,1762519833458,-151.0,0.00017697,2]
[393357449,1762519833468,-161.9975394,0.00017697,2]
[393357450,1762519833477,-266.5476393,0.00017699,2]
[393357451,1762519833486,-178.49015745,0.00017699,2]
[393357452,1762519833495,-500.0,0.00017699,2]
[393357453,1762519833505,-509.38735401,0.00017699,2]
[393357454,1762519833514,-500.0,0.00017699,2]
[393357455,1762519833524,-500.0,0.00017699,2]
[393357456,1762519833533,-327.68748494,0.00017699,2]
[393357457,1762519833544,-500.0,0.00017699,2]
[393357458,1762519833554,-500.0,0.00017699,2]
[393357459,1762519833564,-515.63484931,0.00017699,2]
[393357460,1762519833573,-500.0,0.00017699,2]
[393357461,1762519833583,-530.67245019,0.00017699,2]
[393357462,1762519833593,-500.0,0.00017699,2]
[393357463,1762519833603,-500.0,0.00017699,2]
[393357464,1762519833613,-16864.8576,0.000177,2]
[393357465,1762519833623,-66556.6878147,0.000177,2]
[393357466,1762519833648,-2569.06282752,0.000177,2]
[393357467,1762519833668,-93635.08211815,0.000177,2]
[393357468,1762519833684,-80280.38531344,0.000177,2]
[393357469,1762519833709,-998.6505,0.000177,2]
[393357470,1762519833721,-887.06669,0.000177,2]
[393357471,1762519833763,-300.54698875,0.000177,2]
[393357472,1762519833776,-274.73006917,0.000177,2]
[393357473,1762519833954,355.0,0.0003013,120]
[393357474,1762519834195,368.0,0.0003013,120]
[393357475,1762519834724,428.0,0.0003013,120]
[393357476,1762519835595,409.0,0.0003013,120]
[393357477,1762519836555,477.0,0.0003013,120]
[393357478,1762519837500,209.0,0.0003013,120]
[393357492,1762519838245,-8191.59592678,0.00017667,2]
[393357493,1762519838255,-150.0,0.00017689,2]
[393357494,1762519838264,-174497.78767827,0.000177,2]
[393357495,1762519838274,-1000.0,0.000177,2]
[393357496,1762519838284,-150.0,0.000177,2]
[393357497,1762519838294,-9998.33870293,0.000177,2]
[393357498,1762519838304,-4074.87,0.00017728,2]
[393357499,1762519838313,-9998.33870293,0.00017733,2]
[393357500,1762519838323,-287.08,0.0001774,2]
[393357501,1762519838332,-9998.33870293,0.00017767,2]
[393357502,1762519838347,-9998.33870293,0.000178,2]
[393357503,1762519838357,-250.0,0.00017825,2]
[393357504,1762519838367,-604.60451121,0.00017826,2]
[393357505,1762519838376,-500.0,0.00017826,2]
[393357506,1762519838386,-500.0,0.00017826,2]
[393357507,1762519838397,-450.0,0.00017826,2]
[393357508,1762519838406,-500.0,0.00017826,2]
[393357509,1762519838416,-150.0,0.00017826,2]
[393357510,1762519838425,-500.0,0.00017826,2]
[393357511,1762519838435,-150.0,0.00017826,2]
[393357512,1762519838444,-500.0,0.00017826,2]
[393357513,1762519838454,-674.0,0.00017826,2]
[393357514,1762519838464,-150.0,0.00017826,2]
[393357515,1762519838473,-500.0,0.00017826,2]
[393357516,1762519838483,-150.0,0.00017826,2]
[393357518,1762519838494,-9998.33870293,0.00017833,2]
[393357519,1762519838503,-150.0,0.00017837,2]
[393357521,1762519838512,-213.66,0.00017844,2]
[393357523,1762519838525,-150.0,0.00017844,2]
[393357525,1762519838535,-500.0,0.00017844,2]
[393357527,1762519838545,-500.0,0.00017844,2]
[393357529,1762519838555,-150.0,0.00017844,2]
[393357531,1762519838565,-500.0,0.00017844,2]
[393357533,1762519838575,-500.0,0.00017844,2]
[393357535,1762519838585,-150.0,0.00017844,2]
[393357537,1762519838595,-500.0,0.00017844,2]
[393357539,1762519838605,-150.0,0.00017844,2]
[393357541,1762519838615,-500.0,0.00017844,2]
[393357544,1762519838625,-500.0,0.00017844,2]
[393357545,1762519838634,-200.0,0.00017856,2]
[393357547,1762519838644,-9998.33870293,0.00017867,2]
[393357549,1762519838654,-318.06,0.00017888,2]
[393357551,1762519838664,-150.0,0.00017898,2]
[393357553,1762519838673,-158.10520821,0.00017898,2]
[393357555,1762519838683,-150.0,0.00017898,2]
[393357557,1762519838696,-150.0,0.00017898,2]
[393357559,1762519838709,-500.0,0.00017898,2]
[393357560,1762519838719,-155.73974734,0.00017898,2]
[393357561,1762519838729,-150.0,0.00017898,2]
[393357562,1762519838739,-150.0,0.00017898,2]
[393357563,1762519838749,-446.38118964,0.000179,2]
[393357564,1762519838760,-171.69295478,0.000179,2]
[393357565,1762519838771,-1297.68906116,0.000179,2]
[393357566,1762519838782,-462.43103622,0.000179,2]
[393357567,1762519838792,-9998.33870293,0.000179,2]
[393357568,1762519838802,-1120.11902319,0.000179,2]
[393357569,1762519838812,-233.33506662,0.00017963,2]
[393357570,1762519838822,-500.0,0.00017963,2]
[393357571,1762519838831,-300.0,0.00017963,2]
[393357572,1762519838842,-259.45484298,0.00017963,2]
[393357573,1762519838852,-154.5547493,0.00017963,2]
[393357574,1762519838862,-500.0,0.00017963,2]
[393357575,1762519838872,-674.0,0.00017963,2]
[393357576,1762519838882,-213.28175054,0.00017963,2]
[393357577,1762519838892,-500.0,0.00017963,2]
[393357578,1762519838901,-183.0,0.00017963,2]
[393357579,1762519838911,-184.0,0.00017973,2]
[393357580,1762519838920,-500.0,0.00017973,2]
[393357581,1762519838931,-500.0,0.00017973,2]
[393357582,1762519838941,-500.0,0.00017973,2]
[393357583,1762519838951,-330.33341059,0.00017973,2]
[393357584,1762519838960,-512.33896105,0.00017973,2]
[393357585,1762519838970,-500.0,0.00017973,2]
[393357586,1762519838979,-500.0,0.00017973,2]
[393357587,1762519838990,-463.607732,0.00017973,2]
[393357588,1762519839000,-500.0,0.00017973,2]
[393357589,1762519839010,-500.0,0.00017973,2]
[393357590,1762519839019,-500.0,0.00017973,2]
[393357591,1762519839030,-500.77100973,0.00017973,2]
[393357592,1762519839040,-500.0,0.00017973,2]
[393357593,1762519839050,-500.40959202,0.00017973,2]
[393357594,1762519839059,-500.0,0.00017973,2]
[393357595,1762519839069,-505.50862562,0.00017973,2]
[393357596,1762519839078,-500.0,0.00017973,2]
[393357597,1762519839088,-500.0,0.00017973,2]
[393357598,1762519839098,-500.2462784,0.00017973,2]
[393357599,1762519839107,-500.0935881,0.00017973,2]
[393357600,1762519839118,-501.02087707,0.00017973,2]
[393357601,1762519839127,-500.0,0.00017973,2]
[393357602,1762519839137,-158.19215752,0.00017973,2]
[393357603,1762519839147,-500.0,0.00017973,2]
[393357604,1762519839156,-500.0,0.00017973,2]
[393357605,1762519839166,-635.57618945,0.00017973,2]
[393357606,1762519839177,-500.0,0.00017973,2]
[393357607,1762519839186,-500.0,0.00017973,2]
[393357608,1762519839196,-500.0,0.00017973,2]
[393357609,1762519839205,-500.0,0.00017973,2]
[393357610,1762519839215,-499.25,0.00017973,2]
[393357611,1762519839224,-150.0,0.00017974,2]
[393357612,1762519839233,-150.0,0.00017981,2]
[393357613,1762519839243,-500.0,0.00017981,2]
[393357614,1762519839252,-500.0,0.00017981,2]
[393357615,1762519839262,-500.0,0.00017981,2]
[393357616,1762519839272,-500.0,0.00017981,2]
[393357617,1762519839284,-500.0,0.00017981,2]
[393357618,1762519839294,-500.0,0.00017981,2]
[393357619,1762519839303,-500.0,0.00017981,2]
[393357620,1762519839313,-297.41460461,0.0001799,2]
[393357621,1762519839322,-1000.0,0.00017994,2]
[393357622,1762519839332,-1000.0,0.00017994,2]
[393357623,1762519839341,-1000.0,0.00017994,2]
[393357624,1762519839351,-1000.0,0.00017994,2]
[393357625,1762519839362,-1000.0,0.00017994,2]
[393357626,1762519839371,-1000.0,0.00017994,2]
[393357627,1762519839381,-1000.0,0.00017994,2]
[393357628,1762519839391,-1000.0,0.00017994,2]
[393357629,1762519839400,-1000.0,0.00017994,2]
[393357630,1762519839410,-1000.0,0.00017994,2]
[393357631,1762519839419,-154.047,0.00017994,2]
[393357632,1762519839429,-1000.0,0.00017994,2]
[393357633,1762519839438,-300.0,0.00017999,2]
[393357634,1762519839447,-1000.0,0.00017999,2]
[393357635,1762519839456,-1000.0,0.00017999,2]
[393357636,1762519839467,-300.0,0.00017999,2]
[393357637,1762519839476,-505.03645797,0.00017999,2]
[393357638,1762519839486,-300.0,0.00017999,2]
[393357639,1762519839496,-300.0,0.00017999,2]
[393357640,1762519839505,-300.0,0.00017999,2]
[393357641,1762519839514,-300.0,0.00017999,2]
[393357642,1762519839524,-3411.0,0.00018,2]
[393357643,1762519839533,-1966176.97591536,0.00018,2]
[393357644,1762519839573,333.0,0.0003013,120]
[393357645,1762519839590,-32501.59899795,0.00018,2]
[393357646,1762519839602,-540.51117255,0.00018,2]
[393357647,1762519839628,-286.719,0.00018,2]
[393357648,1762519839639,-4596.19543924,0.00018,2]
[393357649,1762519839716,340.0,0.0003013,120]
[393357650,1762519840033,286.0,0.0003013,120]
[393357653,1762519840393,-5156.10169443,0.000177,2]
[393357654,1762519841988,387.0,0.0003013,120]
[393357655,1762519842661,-2516.64479996,0.000177,2]
[393357656,1762519842672,-344.10384531,0.000177,2]
[393357657,1762519842687,-174.74558708,0.000177,2]
[393357658,1762519842698,-323.40261292,0.00018,2]
[393357659,1762519842722,-1286.75478,0.00018,2]
[393357660,1762519842836,-4988.457,0.00018,2]
[393357661,1762519843034,-1171.22825184,0.00018,2]
[393357662,1762519843045,-463.34291014,0.00018,2]
[393357715,1762519843569,-255.498675,0.00018,2]
[393357716,1762519843680,-967.262052,0.00018,2]
[393357735,1762519846501,-793.15000015,0.00017733,2]
[393357736,1762519846558,-299.81896116,0.00017733,2]
[393357737,1762519846890,-270.48750473,0.00017733,2]
[393357738,1762519846952,-511.702076,0.00017733,2]
[393357815,1762519868693,174.06,8.74e-05,2]
[393357816,1762519868916,174.06,0.00010839,2]
[393357817,1762519869124,174.06,0.00012938,2]
[393357818,1762519884147,364.0,0.0003013,120]
[393357819,1762519885121,478.0,0.0003013,120]
[393357820,1762519886027,343.0,0.0003013,120]
[393357821,1762519886914,288.0,0.0003013,120]
[393357822,1762519887821,203.0,0.0003013,120]
[393357825,1762519947495,399.42351063,0.0003013,120]
[393357827,1762519974109,151.20790448,0.00030137,120]
[393357830,1762520094114,-175.0,0.00031,120]
[393357833,1762520405603,521.0,0.00018,10]
[393357834,1762520556246,-174.06,0.00015037,2]
[393357835,1762520556267,-195.0,0.00015738,2]
[393357836,1762520556287,-1416.10252666,0.00016424,2]
[393357837,1762520556308,-160.0,0.00016424,2]
[393357838,1762520556329,-1107.25,0.00016438,2]
[393357839,1762520556350,-491.06,0.0001651,2]